Cogmind - Beta 15 @@@ ROGUE MODE // 2025.08.28 @ 01:35:29 Player: morimori Result: Destroyed by G-67 Veteran with Plasma Rifle Performance ------------- Evolutions (6) 3000 Regions Visited (27) 5400 Robots Destroyed (188) 940 Value Destroyed (5610) 5610 Prototype IDs (41) 820 Alien Tech Used (1) 200 Bonus (2826) 2826 TOTAL SCORE: 18796 Bonus ------- High Alert Combat Kills 50 Follower Combat Kills 1061 Met Data Miner 300 Met Warlord at Base 500 MAIN.C Attacked Warlord 500 Warlord Defense Kills 2004 Friendly Fire -1589 Cogmind --------- Core Integrity 0/1150 Matter 150/300 Energy 23/100 System Corruption 13% Temperature Cool (0) Movement Walking (105) Location -4/Factory Parts ------- > --- POWER (1) -------- (None) > --- PROPULSION (6) --- Enhanced Flexi-carbon Leg Experimental Myomer Leg Experimental Myomer Leg > --- UTILITY (10) ----- High-capacity Storage Unit Experimental Signal Interpreter Advanced Hacking Suite Advanced Hacking Suite System Mapper Advanced System Shield > --- WEAPON (3) ------- (None) > --- INVENTORY (20) --- Vortex Chain Reactor Enhanced Biometal Leg Advanced Coolant Injector Huge Storage Unit Experimental Core Analyzer Experimental Armor Integrity Analyzer Experimental Phase Shifter Advanced Thermal Shield Advanced Hardlight Generator Hacking Suite Authchip [Device] Authchip [Armor] Vortex Cannon (26) Vortex Cannon (10) Gamma Bomb Array Force Lance Peak State ------------ > --- POWER ------------ Micro Antimatter Reactor > --- PROPULSION ------- Experimental Myomer Leg Experimental Myomer Leg Combat Gravmag System Cooled Antigrav System Combat Antigrav System Combat Linear Gravjet > --- UTILITY ---------- High-capacity Storage Unit Experimental Energy Well Long-range Sensor Array Advanced Signal Interpreter Advanced Hacking Suite Advanced Hacking Suite Advanced Hacking Suite Advanced Hacking Suite System Mapper Advanced System Shield > --- WEAPON ----------- Matter Neutralizer Heavy Proton Missile Launcher Mini Smartbomb Launcher > --- INVENTORY -------- Vortex Chain Reactor Enhanced Flexi-carbon Leg Enhanced Biometal Leg Gravmag Array Advanced Coolant Injector Huge Storage Unit Advanced Sensor Array Experimental Core Analyzer Experimental Armor Integrity Analyzer Experimental Phase Shifter Advanced Thermal Shield Hacking Suite Hacking Suite Authchip [Device] Authchip [Armor] Vortex Cannon Vortex Cannon Gamma Bomb Array [Rating: 153] Favorites ----------- Power Light Nuclear Core Engine Cooled Ion Engine Power Core Light Nuclear Core Reactor Micro Antimatter Reactor Propulsion Gravmag Array Leg Experimental Myomer Leg Wheel Wheel Hover Unit Gravmag Array Utility Advanced Hacking Suite Device Long-range Sensor Array Storage High-capacity Storage Unit Processor Advanced Visual Processing Unit Hackware Advanced Hacking Suite Protection Light Armor Plating Weapon Force Lance Energy Gun Medium Laser Energy Cannon Advanced Plasma Cannon Ballistic Gun Assault Rifle Ballistic Cannon Assault Cannon Launcher Mini Smartbomb Launcher Slashing Weapon Plasma Sword Piercing Weapon Force Lance Build | -11 -10 -10 -9 -9 -9 -8 -8 -7 -7 -7 -7 -7 -7 -6 -6 -6 -6 -6 -5 -5 -5 -5 -5 -5 -5 -4 -4 ------- Run | Yrd Mat Min Mat Min Exi Min Mat Fac Was Fac Low Low Zio Pro Fac Low Low Dat Pro Fac Was Fac Upp Upp War Pro Fac Slots Evolved 12 | . . . 2 . . . 2 2 . . . . . . 2 . . . . 2 . . . . . . 2 Power . | . . . . . . . . . . . . . . . . . . . . . . . . . . . . Propulsion 4 | . . . . . . . 2 1 . . . . . . . . . . . 1 . . . . . . . Utility 8 | . . . 2 . . . . 1 . . . . . . 2 . . . . 1 . . . . . . 2 Weapon . | . . . . . . . . . . . . . . . . . . . . . . . . . . . . Parts Attached 168 | 7 13 3 26 . 1 3 15 16 4 5 . 2 2 . 17 1 5 1 . 13 5 . . . 9 . 20 Power 23 | 1 1 1 5 . . . 3 2 1 . . 1 . . 1 . 1 . . 1 1 . . . 2 . 2 Engine 14 | 1 1 1 5 . . . 2 2 . . . . . . 1 . . . . 1 . . . . . . . Core 6 | . . . . . . . 1 . 1 . . 1 . . . . 1 . . . 1 . . . . . 1 Reactor 3 | . . . . . . . . . . . . . . . . . . . . . . . . . 2 . 1 Propulsion 47 | 2 6 . 4 . . 1 6 7 . 2 . . . . 6 . . . . 2 3 . . . 1 . 7 Treads . | . . . . . . . . . . . . . . . . . . . . . . . . . . . . Leg 3 | . . . . . . . . . . . . . . . . . . . . . . . . . . . 3 Wheel 18 | 2 6 . 4 . . 1 5 . . . . . . . . . . . . . . . . . . . . Hover 26 | . . . . . . . 1 7 . 2 . . . . 6 . . . . 2 3 . . . 1 . 4 Flight . | . . . . . . . . . . . . . . . . . . . . . . . . . . . . Utility 52 | 2 2 . 9 . 1 1 2 4 1 . . . 1 . 8 1 2 1 . 6 1 . . . 3 . 7 Device 14 | 1 . . 1 . . 1 . 1 1 . . . 1 . 2 1 . . . 1 1 . . . 2 . 1 Storage 7 | 1 2 . 1 . 1 . 1 . . . . . . . . . . . . . . . . . 1 . . Processor 8 | . . . 1 . . . . 1 . . . . . . 1 . 1 1 . 1 . . . . . . 2 Hackware 14 | . . . . . . . . 1 . . . . . . 5 . 1 . . 3 . . . . . . 4 Protection 9 | . . . 6 . . . 1 1 . . . . . . . . . . . 1 . . . . . . . Artifact . | . . . . . . . . . . . . . . . . . . . . . . . . . . . . Weapon 46 | 2 4 2 8 . . 1 4 3 2 3 . 1 1 . 2 . 2 . . 4 . . . . 3 . 4 Energy Gun 2 | 1 . . . . . . . . . . . . . . . . 1 . . . . . . . . . . Energy Cannon 11 | . . . . . . . 2 . . 1 . . . . 2 . . . . 3 . . . . 1 . 2 Ballistic Gun 16 | 1 4 2 6 . . . . 1 1 . . . . . . . . . . . . . . . 1 . . Ballistic Cannon 5 | . . . 1 . . . 2 1 1 . . . . . . . . . . . . . . . . . . Launcher 6 | . . . 1 . . 1 . . . . . 1 . . . . 1 . . . . . . . 1 . 1 Special Weapon . | . . . . . . . . . . . . . . . . . . . . . . . . . . . . Impact Weapon . | . . . . . . . . . . . . . . . . . . . . . . . . . . . . Slashing Weapon 4 | . . . . . . . . 1 . 1 . . 1 . . . . . . 1 . . . . . . . Piercing Weapon 2 | . . . . . . . . . . 1 . . . . . . . . . . . . . . . . 1 Special Melee Weapon . | . . . . . . . . . . . . . . . . . . . . . . . . . . . . Unidentified Prototypes 13 | . . . . . . . 1 . . . . . 1 . 1 . 1 . . . . . . . 7 . 2 Corrupted Parts 1 | . . . . . . . . . . . . . . . . . . . . . . . . . . . 1 System Corruption 5 | . . . . . . . . . . . . . . . . . . . . . . . . . . . 5 Parts Lost 42 | . 4 . 3 . . . 6 1 2 1 . 1 . . 4 1 2 . . 1 . . . . . . 16 Power 9 | . . . . . . . 1 1 . . . 1 . . 2 . . . . 1 . . . . . . 3 Propulsion 17 | . 3 . 2 . . . 3 . . 1 . . . . 1 . . . . . . . . . . . 7 Utility 10 | . . . 1 . . . 1 . . . . . . . 1 1 2 . . . . . . . . . 4 Weapon 6 | . 1 . . . . . 1 . 2 . . . . . . . . . . . . . . . . . 2 Highest Loss Streak 8 | . 1 . 1 . . . 2 1 2 1 . 1 . . 2 1 1 . . 1 . . . . . . 8 To Critical Strikes . | . . . . . . . . . . . . . . . . . . . . . . . . . . . . Average Backups 16 | 2 9 18 19 20 20 20 19 15 14 14 15 15 15 15 14 13 12 11 13 17 18 18 19 19 18 19 18 Power 1 | 1 1 1 2 1 1 1 . . 1 1 1 1 1 1 1 1 1 1 1 1 1 1 1 1 . 1 1 Propulsion 2 | . 1 3 3 7 7 7 5 1 . . . . . . . 1 1 1 1 1 3 3 3 3 3 5 3 Utility 7 | . 2 6 6 6 6 6 8 8 9 10 11 11 11 11 8 7 6 5 6 7 8 8 9 9 10 10 10 Weapon 4 | . 2 6 7 6 6 6 4 4 3 3 3 3 3 3 3 4 4 3 3 7 6 5 6 6 4 3 3 Tool/Special . | . . . . . . . . . . . . . . . . . . . . . . . . . . . . Unused Backups 59 | . 2 1 14 . . . 6 5 1 . . . . . 3 . . . . 7 1 1 . . 4 . 14 Power 8 | . 1 1 4 . . . . 1 . . . . . . . . . . . . . . . . . . 1 Propulsion 9 | . . . 2 . . . 3 1 . . . . . . . . . . . 1 . 1 . . . . 1 Utility 18 | . . . 1 . . . . . 1 . . . . . 1 . . . . 1 . . . . 2 . 12 Weapon 24 | . 1 . 7 . . . 3 3 . . . . . . 2 . . . . 5 1 . . . 2 . . Tool/Special . | . . . . . . . . . . . . . . . . . . . . . . . . . . . . Average Slot Usage (%) 90 | . 93 100 97 100 99 100 93 99 81 96 92 90 84 84 84 85 83 79 81 77 82 85 83 83 92 94 89 Engine 5 | . 14 14 11 11 11 11 8 6 6 . . . . . 5 6 . . . 4 2 . . . . . . Core 1 | . . . . . . . . . . 7 7 6 7 7 . . 5 6 6 . 2 5 5 5 1 . . Wheel 8 | . 21 28 21 22 22 22 31 . . . . . . . . . . . . . . . . . . . . Hover 15 | . . . . . . . 1 37 26 36 30 28 23 23 20 20 19 18 18 21 22 21 22 22 25 27 23 Device 7 | . 14 14 6 . . 9 9 7 7 7 7 7 7 7 6 18 17 12 6 4 5 4 5 5 5 5 4 Storage 8 | . 14 14 11 11 11 11 9 7 7 7 7 7 7 7 6 6 6 6 6 5 5 5 5 5 9 11 9 Processor 7 | . . . 9 11 11 11 9 14 15 15 15 15 15 15 10 . . 3 6 6 5 5 5 5 5 5 4 Hackware 11 | . . . . . . . . 6 7 7 7 7 7 7 18 20 19 18 18 24 27 27 27 27 23 22 29 Protection 3 | . . . 15 22 21 12 7 . . . . . . . . . . . . . . . . . . . . Energy Cannon 1 | . . . . . . . . . . 1 . . . 1 4 5 4 4 5 3 1 3 . 3 . 3 3 Ballistic Gun 8 | . 27 28 19 21 22 21 4 5 . . . . . . . . . . . . . . . . . . . Launcher 1 | . . . . . . . . . . . . 1 . 3 . . . 1 . . . . . 1 9 11 6 Slashing Weapon 2 | . . . . . . . . 6 6 11 7 5 7 1 1 . . 3 6 1 3 5 5 1 3 . . Piercing Weapon 2 | . . . . . . . . . . . 7 7 7 7 6 6 6 3 5 1 5 5 5 3 3 1 . Peak Build Rating 153 | 7 9 12 21 20 20 20 29 49 50 46 46 49 45 45 81 81 81 82 83 105 106 110 105 111 131 129 153 Average Rating 56 | 6 7 10 18 20 19 19 24 45 39 44 46 45 43 44 63 77 76 75 81 90 101 107 105 104 123 128 137 On Entrance 57 | . 7 9 12 20 20 20 20 27 49 40 46 46 42 44 42 80 79 74 74 82 99 105 105 105 111 129 128 Naked Turns . | . . . . . . . . . . . . . . . . . . . . . . . . . . . . Heaviest Build 75 | 13 50 53 60 60 60 60 65 38 38 37 35 40 36 40 47 51 54 54 52 64 66 70 61 67 71 74 75 Greatest Support 81 | 32 32 26 26 22 22 22 42 52 52 44 36 36 28 28 54 54 54 54 54 63 70 70 70 70 77 77 81 Greatest Overweight (x) 22 | . 3 2 5 2 2 2 2 . 1 . . 1 1 1 1 . . . . 1 1 1 . . 22 . 1 Average Overweight (x) . | . 1 1 2 2 2 2 1 . . . . . 1 1 . . . . . . . . . . . . . Largest Inventory Capacity 35 | 8 20 20 20 20 35 20 20 20 15 15 15 15 15 15 15 15 15 15 15 20 20 20 20 20 20 20 20 Average Capacity 17 | 7 12 20 20 20 20 20 20 15 15 15 15 15 15 15 15 15 15 15 15 19 20 20 20 20 20 20 20 Most Carried 20 | 5 14 20 20 20 20 20 20 20 15 15 15 15 15 15 15 14 15 13 15 20 20 20 20 20 20 20 20 Average Carried 16 | 2 9 18 19 20 20 20 19 15 14 14 14 15 15 15 14 13 13 12 14 19 19 19 20 19 19 20 19 Final Capacity 20 | 8 20 20 20 20 20 20 20 15 15 15 15 15 15 15 15 15 15 15 15 20 20 20 20 20 20 20 20 Final Carried 20 | 5 14 20 20 20 20 20 20 15 15 15 15 15 15 15 14 14 13 12 15 19 20 20 20 19 20 20 17 Class Distribution -------------------- 18% | Scavenger-Mutant 18% | Mutant 15% | Hacker-Mutant 15% | Wizard-Mutant 7% | Scavenger-Scout 7% | Scavenger-Assassin 4% | Scout Dominant Class ---------------- Mutant | -10/Materials Scavenger-Mutant | -10/Mines Scavenger-Mutant | -9/Materials Mutant | -9/Mines Mutant | -9/Exiles Mutant | -8/Mines Scavenger-Mutant | -8/Materials Scout | -7/Factory Assassin | -7/Waste Scavenger-Scout | -7/Factory Scavenger-Scout | -7/Lower Caves Scavenger-Scout | -7/Lower Caves Scavenger-Assassin | -7/Zion Scavenger-Assassin | -6/Proximity Caves Hacker-Scout | -6/Factory Hacker-Mutant | -6/Lower Caves Hacker-Mutant | -6/Lower Caves Hacker-Mutant | -6/Data Miner Hacker-Gladiator | -5/Proximity Caves Hacker-Mutant | -5/Factory Wizard-Mutant | -5/Waste Wizard-Mutant | -5/Factory Wizard-Mutant | -5/Upper Caves Wizard-Mutant | -5/Upper Caves Hacker-Mutant | -5/Warlord Hacker-Skirmisher | -4/Proximity Caves Wizard-Mutant | -4/Factory Resources | -11 -10 -10 -9 -9 -9 -8 -8 -7 -7 -7 -7 -7 -7 -6 -6 -6 -6 -6 -5 -5 -5 -5 -5 -5 -5 -4 -4 ----------- Run | Yrd Mat Min Mat Min Exi Min Mat Fac Was Fac Low Low Zio Pro Fac Low Low Dat Pro Fac Was Fac Upp Upp War Pro Fac Matter Collected 6897 | 299 748 30 750 261 . 92 660 110 287 40 25 46 209 35 265 80 190 . 200 414 165 76 20 208 1136 101 450 Remotely . | . . . . . . . . . . . . . . . . . . . . . . . . . . . . Salvage Created 6551 | 135 1164 . 777 55 . 62 645 116 44 43 88 22 . 78 716 58 618 . 120 373 253 137 . 58 478 8 503 Parts 375 | 13 77 . 55 13 . 8 40 10 1 7 5 3 . 6 18 . 18 . 4 13 10 10 . 4 22 2 36 Haulers Intercepted 5 | . 2 . 2 . . . 1 . . . . . . . . . . . . . . . . . . . . Recyclers Shooed 9 | . 7 . 1 . . . 1 . . . . . . . . . . . . . . . . . . . . Parts Field Recycled . | . . . . . . . . . . . . . . . . . . . . . . . . . . . . Retrieved Matter . | . . . . . . . . . . . . . . . . . . . . . . . . . . . . Parts Self-Destructed 26 | . . . . . . . . . . . 5 1 . 2 . . 9 . 3 . . . . 4 . 2 . Prevented 15 | . . . . . . . . . . . . . . . . . 13 . . . . . . 2 . . . Kills | -11 -10 -10 -9 -9 -9 -8 -8 -7 -7 -7 -7 -7 -7 -6 -6 -6 -6 -6 -5 -5 -5 -5 -5 -5 -5 -4 -4 ------- Run | Yrd Mat Min Mat Min Exi Min Mat Fac Was Fac Low Low Zio Pro Fac Low Low Dat Pro Fac Was Fac Upp Upp War Pro Fac Combat Hostiles Destroyed 125 | . 22 . 16 7 . 3 16 4 . . . 4 . 2 1 1 5 . 4 3 . . . 5 18 4 10 Melee 5 | . . . . . . . . . . . . 1 . . 1 . . . . 1 . . . . . . 2 Guns 39 | . 22 . 11 2 . 2 2 . . . . . . . . . . . . . . . . . . . . Cannons 13 | . . . 1 . . . 8 . . . . . . . . . . . . . . . . . . . 4 AOE 66 | . . . 4 5 . 1 6 4 . . . 3 . 2 . 1 3 . 4 2 . . . 5 18 4 4 Classes Destroyed 22 | 2 7 . 1 . . . 1 . 1 . 1 1 . 2 . . . . . 1 . . . . 5 . . Worker 11 | . 3 . 4 . . . 2 2 . . . . . . . . . . . . . . . . . . . Builder 4 | . 1 . . 1 . . . . . . . . . . . . . . . . . 1 . . . . 1 Tunneler 5 | 3 . . . . . 1 . 1 . . . . . . . . . . . . . . . . . . . Hauler 5 | . 2 . 2 . . . 1 . . . . . . . . . . . . . . . . . . . . Recycler 12 | 1 3 . 1 . . . . 1 . . . . . . 3 . . . . 3 . . . . . . . Minesweeper 1 | . . . . . . . . . . . 1 . . . . . . . . . . . . . . . . Mechanic 1 | . . . . . . . . . . . . . . . . . . . . . . . . . 1 . . Operator 8 | . 3 . 2 . . . 1 . . 1 . . . . . . . . . . . 1 . . . . . Drone 4 | . . . . . . . . . . . . . . 2 . . . . . . . . . . . 2 . Watcher 10 | . 3 . 2 . . . . . . 1 . . . . 1 . . . . . . . . . . . 3 Swarmer 45 | . 9 . 7 7 . 3 . 4 . . . 3 . . . . . . . 1 . . . 4 5 2 . Grunt 41 | . 13 . 5 . . . 10 . . . . . . . . . 3 . 4 . . . . 1 4 . 1 Brawler 2 | . . . . . . . . . . . . . . . . . . . . . . . . . 2 . . Protector 1 | . . . . . . . . . . . . . . . . . . . . . . . . . 1 . . Sentry 10 | . . . 4 . . . 5 . . . . . . . 1 . . . . . . . . . . . . Hunter 7 | . . . . . . . 1 . . . . . . . . . 2 . . . . . . . 4 . . Programmer 11 | . . . . . . . . . . . . . . . . . . . . 2 . . . . . . 9 Striker 1 | . . . . . . . . . . . . . . . . . . . . . . . . . 1 . . Samaritan 2 | . . . . . . . . . . . . . . 2 . . . . . . . . . . . . . Thief 2 | . . . . . . . . . . . . 1 . . . 1 . . . . . . . . . . . Wasp 3 | . . . . . . . . . . . . . . . . . . . . . 3 . . . . . . Butcher 1 | . . . . . . . . . . . . . . . . . . . . . . . . . 1 . . Martyr 3 | . . . . . . . . . 1 . . . . . . . . . . . 2 . . . . . . Best Kill Streak 12 | 3 3 . 5 4 . 2 8 5 . 1 1 3 . 1 2 1 3 . 4 2 . 1 . 4 12 3 3 Combat Bots Only 11 | . 3 . 4 4 . 2 8 4 . . . 3 . 1 1 1 3 . 4 2 . . . 4 11 3 2 Max Kills in Single Turn 4 | 1 1 . 2 2 . 1 3 2 1 1 1 2 . 1 1 1 1 . 2 1 1 1 . 2 4 2 2 Gunslinging . | . . . . . . . . . . . . . . . . . . . . . . . . . . . . Exploded 4 | . . . 2 2 . 1 3 2 . . . 2 . 1 . 1 1 . 2 1 . . . 2 4 2 2 Melee 1 | . . . . . . . . . . . . 1 . . 1 . . . . 1 . . . . . . 1 Uniques/NPCs Destroyed . | . . . . . . . . . . . . . . . . . . . . . . . . . . . . Combat | -11 -10 -10 -9 -9 -9 -8 -8 -7 -7 -7 -7 -7 -7 -6 -6 -6 -6 -6 -5 -5 -5 -5 -5 -5 -5 -4 -4 -------- Run | Yrd Mat Min Mat Min Exi Min Mat Fac Was Fac Low Low Zio Pro Fac Low Low Dat Pro Fac Was Fac Upp Upp War Pro Fac Hostile Shots Fired 772 | . 93 . 93 13 . 6 81 12 2 28 . 14 . . 34 4 69 4 4 19 . 11 . 2 30 21 232 Missed 265 | . 13 . 32 2 . . 19 5 . 15 . 7 . . 16 . 32 2 3 7 . 7 . . 10 14 81 Hits 507 | . 80 . 61 11 . 6 62 7 2 13 . 7 . . 18 4 37 2 1 12 . 4 . 2 20 7 151 Melee 8 | . . . . . . . . . 2 . . 2 . . . 4 . . . . . . . . . . . Projectile 499 | . 80 . 61 11 . 6 62 7 . 13 . 5 . . 18 . 37 2 1 12 . 4 . 2 20 7 151 AOE 3 | . . . . . . . . . . . . . . . . . . . . . . . . . 3 . . Critical Strikes 27 | . 1 . 3 . . . 6 . 1 . . . . . . . . . . . . . . . 2 . 14 Damage Taken 8481 | . 783 . 757 109 . 50 1020 110 93 165 . 53 . . 227 85 502 92 20 234 . 185 . 31 200 150 3615 Core 1981 | . 167 . 124 25 . . 144 32 41 12 . 12 . . 22 29 78 . . 21 . 91 . 4 11 17 1151 Absorbed by Shields 78 | . . . . . . . . . . . . . . . . . . . . . . . . . 66 12 . Regen/Repaired (Parts) 1132 | . . . 30 . . . 145 . 12 53 . . . . 24 . . . . 124 170 133 . . 49 . 392 Core Remaining (%) 74 | 100 . 33 . . . 62 73 . . . . . . 86 . . . . 84 . . . . . . 85 . Volleys Fired 662 | 11 129 . 86 10 . 7 59 9 12 1 . 11 . 4 8 1 25 10 22 73 1 24 . 17 46 14 82 Largest 2 | 2 2 . 2 2 . 2 2 1 1 1 . 1 . 1 1 1 1 1 1 1 1 1 . 1 1 1 2 Hottest 155 | 70 40 . 60 46 . 46 74 40 40 65 . 80 . 80 98 80 85 85 85 98 98 98 . 98 80 98 155 Shots Fired 946 | 22 258 . 170 16 2 12 97 9 12 1 . 11 . 4 8 1 25 10 22 74 1 25 . 18 46 14 88 Gun 480 | 22 258 . 149 12 2 10 19 . 8 . . . . . . . . . . . . . . . . . . Cannon 345 | . . . 18 . . . 69 4 4 1 . 5 . 2 8 . 14 10 18 69 1 25 . 12 . 9 76 Launcher 121 | . . . 3 4 . 2 9 5 . . . 6 . 2 . 1 11 . 4 5 . . . 6 46 5 12 Special . | . . . . . . . . . . . . . . . . . . . . . . . . . . . . Kinetic 553 | 11 258 . 167 12 2 10 77 4 12 . . . . . . . . . . . . . . . . . . Thermal 252 | 11 . . . . . . . . . 1 . 5 . 2 8 . 14 10 18 69 1 25 . 12 . 9 67 Explosive 92 | . . . 3 4 . 2 9 5 . . . 6 . 2 . 1 . . 4 5 . . . 6 33 5 7 Electromagnetic 40 | . . . . . . . 11 . . . . . . . . . 11 . . . . . . . 13 . 5 Entropic 9 | . . . . . . . . . . . . . . . . . . . . . . . . . . . 9 Robot Hit Streak 12 | 7 11 . 12 4 . 6 7 3 7 . . 2 . . 3 . 1 . . 3 . 4 . . 3 . 6 Robot Miss Streak 5 | 2 4 . 5 2 . 2 3 1 5 . . . . . 1 . 2 . . 2 . 1 . . 1 . 2 Penetration Max . | . . . . . . . . . . . . . . . . . . . . . . . . . . . . Secondary Targets 1 | . . . 1 . . . . . . . . . . . . . . . . . . . . . . . . Max Gunslinging Chain 1 | . . . 1 . . . . . . . . . . . . . . . . . . . . . . . . Shots Hit Robots 445 | 13 148 . 99 8 . 7 59 7 9 3 5 4 . 2 10 8 9 1 . 7 9 4 . . 4 . 29 Core Hits 339 | 5 61 . 42 9 . 4 35 7 7 2 2 3 . 3 4 2 8 . 8 7 5 2 . 8 82 4 29 Critical Kills . | . . . . . . . . . . . . . . . . . . . . . . . . . . . . Critical Parts Destroyed 1 | . 1 . . . . . . . . . . . . . . . . . . . . . . . . . . Critical Strikes 5 | . 1 . 1 . . . . 1 . . . . . 1 . . . . . 1 . . . . . . . Destroy 1 | . 1 . . . . . . . . . . . . . . . . . . . . . . . . . . Blast 2 | . . . 1 . . . . 1 . . . . . . . . . . . . . . . . . . . Impale 2 | . . . . . . . . . . . . . . 1 . . . . . 1 . . . . . . . Melee Attacks 204 | . . . . . . . . 19 3 27 10 5 . 4 27 13 12 2 . 27 14 18 . 1 1 . 21 Impact . | . . . . . . . . . . . . . . . . . . . . . . . . . . . . Slashing 84 | . . . . . . . . 19 3 27 1 1 . . . 10 2 1 . 10 7 3 . . . . . Piercing 120 | . . . . . . . . . . . 9 4 . 4 27 3 10 1 . 17 7 15 . 1 1 . 21 Sneak Attacks 28 | . . . . . . . . 4 1 1 1 . . 2 3 . . 1 . 3 9 2 . . . . 1 Combat Hostiles . | . . . . . . . . . . . . . . . . . . . . . . . . . . . . Follow-up Attacks 5 | . . . . . . . . . . . . . . . . 3 . . . . 2 . . . . . . Damage Inflicted 22811 | 160 1672 . 1885 433 . 123 1994 823 292 163 217 702 . 317 701 313 1048 56 694 736 829 319 . 626 5683 484 2541 Guns 3692 | 160 1672 . 1267 93 . 106 174 . 220 . . . . . . . . . . . . . . . . . . Cannons 2151 | . . . 340 . . . 1041 59 . . . . . . 28 . . . . 32 . 35 . . . . 616 Explosions 12193 | . . . 278 340 . 17 779 394 . . . 626 . 135 . 42 442 . 694 354 . . . 626 5683 484 1299 Melee 4733 | . . . . . . . . 370 72 163 217 76 . 182 673 271 606 56 . 350 829 284 . . . . 584 Ramming 42 | . . . . . . . . . . . . . . . . . . . . . . . . . . . 42 Kinetic 4868 | 73 1672 . 1607 93 . 106 1038 59 220 . . . . . . . . . . . . . . . . . . Thermal 987 | 87 . . . . . . . . . . . . . . 28 . . . . 32 . 35 . . 67 . 738 Explosive 9957 | . . . 278 340 . 17 779 394 . . . 626 . 135 . 42 . . 694 354 . . . 626 4808 484 380 Electromagnetic 1870 | . . . . . . . 177 . . . . . . . . . 442 . . . . . . . 808 . 443 Impact . | . . . . . . . . . . . . . . . . . . . . . . . . . . . . Slashing 1285 | . . . . . . . . 370 72 163 . . . . . 213 . . . 197 270 . . . . . . Piercing 3448 | . . . . . . . . . . . 217 76 . 182 673 58 606 56 . 153 559 284 . . . . 584 Entropic 354 | . . . . . . . . . . . . . . . . . . . . . . . . . . . 354 Highest Corruption 13 | . . . 1 1 1 1 . . . . . . . . . . . . . 2 2 2 2 2 2 . 13 Average Corruption 1 | . . . 1 1 1 1 . . . . . . . . . . . . . 1 2 2 2 2 2 . 3 Corruption Purged . | . . . . . . . . . . . . . . . . . . . . . . . . . . . . Corruption Blocked . | . . . . . . . . . . . . . . . . . . . . . . . . . . . . Effects 66 | . . . 1 7 4 5 . . . . . . . . . . . . . 12 4 10 1 3 . . 19 Message Errors 9 | . . . . . 1 2 . . . . . . . . . . . . . . . 2 . . . . 4 Matter Fused 13 | . . . . 1 . 2 . . . . . . . . . . . . . 2 . 3 . 1 . . 4 Heat Flow Errors 10 | . . . . . 1 1 . . . . . . . . . . . . . 3 . . 1 . . . 4 Energy Discharges 11 | . . . . 4 . . . . . . . . . . . . . . . 1 3 2 . . . . 1 Parts Rejected 1 | . . . . . . . . . . . . . . . . . . . . . . . . . . . 1 Parts Fused 1 | . . . . . . . . . . . . . . . . . . . . . . . . 1 . . . Data Loss (minor) 13 | . . . . 1 . . . . . . . . . . . . . . . 4 1 2 . . . . 5 Data Loss (major) 1 | . . . 1 . . . . . . . . . . . . . . . . . . . . . . . . Misfires 5 | . . . . . 2 . . . . . . . . . . . . . . 1 . 1 . 1 . . . Alerts 2 | . . . . 1 . . . . . . . . . . . . . . . 1 . . . . . . . Overload Shots . | . . . . . . . . . . . . . . . . . . . . . . . . . . . . Overflow Damage 2187 | . . . 6 1 . . 25 158 . 10 69 132 . 234 267 44 328 . . 88 148 96 . 14 141 139 287 Projectiles 150 | . . . . . . . 2 . . . . . . . . . . . . . . . . . . . 148 Explosions 533 | . . . 6 1 . . 23 51 . . . 76 . . . 5 2 . . 19 . . . 14 141 139 56 Melee 1504 | . . . . . . . . 107 . 10 69 56 . 234 267 39 326 . . 69 148 96 . . . . 83 Knockbacks 8 | . . . . . . . 7 1 . . . . . . . . . . . . . . . . . . . Impact . | . . . . . . . . . . . . . . . . . . . . . . . . . . . . Kinetic 8 | . . . . . . . 7 1 . . . . . . . . . . . . . . . . . . . Secondary . | . . . . . . . . . . . . . . . . . . . . . . . . . . . . Self-Inflicted Damage 600 | . . . . 18 . . 77 . . . . . . . . . 34 . . . . . . 7 . 26 438 Shots 17 | . . . . 1 . . 1 . . . . . . . . . 3 . . . . . . 1 . 1 10 Rammed 3 | . . . . . . . . . . . . . . . . . . . . . . . . . . . 3 Targets Rammed 6 | . . . . . . . . . . . . . . . . . . . . . . . . . . . 6 Kicked 3 | . . . . . . . . . . . . . . . . . . . . . . . . . . . 3 Crushed . | . . . . . . . . . . . . . . . . . . . . . . . . . . . . Highest Temperature 374 | 36 12 . 31 16 202 126 132 . . 28 . 100 . 34 83 32 152 335 83 346 44 136 175 174 147 185 374 Average Temperature 60 | 14 6 . 9 8 90 31 42 . . 12 . 39 . 18 29 18 53 182 40 73 27 45 92 71 50 81 82 Received Heat Transfer 1774 | . 240 . 315 . . . 459 . 9 18 . . . . 69 . 57 . 9 . . 27 . . 9 9 553 Effects 4 | . . . . . . . . . . . . . . . . . . 1 . . . . . . . . 3 Shutdowns 1 | . . . . . . . . . . . . . . . . . . 1 . . . . . . . . . Short Circuit 2 | . . . . . . . . . . . . . . . . . . . . . . . . . . . 2 Damage (minor) 1 | . . . . . . . . . . . . . . . . . . . . . . . . . . . 1 Siege Activations . | . . . . . . . . . . . . . . . . . . . . . . . . . . . . Martial Activations . | . . . . . . . . . . . . . . . . . . . . . . . . . . . . Shielding Activations . | . . . . . . . . . . . . . . . . . . . . . . . . . . . . Robots Disrupted 2 | . . . . . . . . . . . . . . . . . . . . . . . . . 1 . 1 Combat Hostiles 2 | . . . . . . . . . . . . . . . . . . . . . . . . . 1 . 1 Robots Corrupted 2 | . . . . . . . . . . . . . . . . . 2 . . . . . . . . . . Combat Hostiles 2 | . . . . . . . . . . . . . . . . . 2 . . . . . . . . . . Parts Fried 2 | . . . . . . . . . . . . . . . . . 1 . . . . . . . 1 . . Impact Corruptions . | . . . . . . . . . . . . . . . . . . . . . . . . . . . . Robots Melted . | . . . . . . . . . . . . . . . . . . . . . . . . . . . . Combat Hostiles . | . . . . . . . . . . . . . . . . . . . . . . . . . . . . Parts Melted . | . . . . . . . . . . . . . . . . . . . . . . . . . . . . Heat Transferred 918 | 259 . . . . . . . . . . . . . . 37 . . . . 50 . 50 . . 50 . 472 Parts Sabotaged . | . . . . . . . . . . . . . . . . . . . . . . . . . . . . Parts Stolen 2 | . . . . . . . . . . . . 2 . . . . . . . . . . . . . . . Parts Stripped . | . . . . . . . . . . . . . . . . . . . . . . . . . . . . Power Chain Reactions 6 | . . . . . . . . . . . . . . . . . 1 . . . . . . . 4 . 1 Alert | -11 -10 -10 -9 -9 -9 -8 -8 -7 -7 -7 -7 -7 -7 -6 -6 -6 -6 -6 -5 -5 -5 -5 -5 -5 -5 -4 -4 ------- Run | Yrd Mat Min Mat Min Exi Min Mat Fac Was Fac Low Low Zio Pro Fac Low Low Dat Pro Fac Was Fac Upp Upp War Pro Fac Maximum Alert Level 2 | . . . 1 . . . 1 . . . . . . . . . . . . . . . . . . . 2 Low Security (%) 87 | 100 100 100 81 100 . 100 38 100 100 100 . . . . 100 . . . . 100 100 100 . . . . 27 Level 1 11 | . . . 18 . . . 61 . . . . . . . . . . . . . . . . . . . 65 Level 2 . | . . . . . . . . . . . . . . . . . . . . . . . . . . . 6 Level 3 . | . . . . . . . . . . . . . . . . . . . . . . . . . . . . Level 4 . | . . . . . . . . . . . . . . . . . . . . . . . . . . . . Level 5 . | . . . . . . . . . . . . . . . . . . . . . . . . . . . . High Security . | . . . . . . . . . . . . . . . . . . . . . . . . . . . . Max Security . | . . . . . . . . . . . . . . . . . . . . . . . . . . . . Peak Influence 503 | 5 159 56 293 144 . 65 335 137 24 55 . . . . 143 . . . . 132 45 62 . . . . 503 Initial 219 | . . 51 . 102 . . . 137 10 . . . . . . . . . . . 45 . . . . . 219 Average 73 | . 88 7 109 57 . 7 177 62 1 8 . . . . 59 . . . . 32 9 7 . . . . 230 Influence Increases 7210 | 20 673 56 799 248 . 109 708 262 28 173 10 85 . 10 424 . 260 . 90 368 46 195 . 110 799 260 1477 Destroy 0b10 Robot/C 2740 | . 440 40 460 140 . 60 320 80 . . . 60 . . 20 . 100 . 80 60 . . . 100 540 40 200 Destroy 0b10 Robot/NC 350 | 20 75 . 70 5 . 5 20 20 . 10 10 . . 10 30 . 5 . . 15 . 15 . . 10 10 20 Destroy Leader 552 | . 110 10 150 20 . 10 102 10 . 2 . 10 . . 12 . 20 . 10 10 . . . 10 . . 66 Allied During Kill 202 | . . 6 22 . . . . . . . . . . . . . . . . . . . . . 174 . . Successful Hack 398 | . 16 . 55 10 . . 19 110 . 51 . . . . 101 . . . . 36 . . . . . . . Disable Machine 405 | . 15 . 15 . . . 90 . . 15 . . . . . . . . . 30 . . . . . . 240 Destroy Structure 898 | . 2 . 12 28 . 19 67 27 28 20 . . . . 21 . . . . 202 46 60 . . . . 366 Advance Influence 150 | . . . . . . . . . . . . . . . . . . . . . . . . . . . 150 Partial Spotted 60 | . . . 15 . . . . 15 . . . . . . . . . . . 15 . . . . . . 15 Lose Combat Pursuer 1455 | . 15 . . 45 . 15 90 . . 75 . 15 . . 240 . 135 . . . . 120 . . 75 210 420 Influence Decreases 6694 | 20 542 187 536 487 24 109 404 537 57 173 10 23 62 10 331 93 260 . 90 238 176 147 48 70 306 683 1071 Entered New Map 1266 | . . 80 . 161 24 . . 167 19 . . . 62 . . 35 . . . . 85 . 19 . 40 533 41 Time Decay 4675 | 20 502 107 486 326 . 109 354 350 36 173 10 23 . 10 316 48 194 . 90 228 91 147 29 70 266 140 550 Lost Part 346 | . 40 . 30 . . . 50 10 1 . . . . . 15 10 20 . . 10 . . . . . . 160 Lost Ally 107 | . . . 20 . . . . 10 1 . . . . . . . 46 . . . . . . . . 10 20 Purge Threat 300 | . . . . . . . . . . . . . . . . . . . . . . . . . . . 300 Squads Dispatched 43 | . 5 . 1 . . . 4 3 . 3 . . . . 9 . . . . 5 . 3 . . . 1 9 Investigation 13 | . 2 . . . . . . 1 . . . . . . 4 . . . . 2 . 1 . . . . 3 Extermination 14 | . . . . . . . . 2 . 2 . . . . 2 . . . . 3 . 1 . . . . 4 Reinforcement 15 | . 3 . 1 . . . 4 . . 1 . . . . 3 . . . . . . 1 . . . . 2 Assault 1 | . . . . . . . . . . . . . . . . . . . . . . . . . . 1 . Garrison . | . . . . . . . . . . . . . . . . . . . . . . . . . . . . Intercept . | . . . . . . . . . . . . . . . . . . . . . . . . . . . . Searches Triggered . | . . . . . . . . . . . . . . . . . . . . . . . . . . . . Construction Impeded 1 | . . . . . . . 1 . . . . . . . . . . . . . . . . . . . . Haulers Reinforced . | . . . . . . . . . . . . . . . . . . . . . . . . . . . . Active Scanning Responses . | . . . . . . . . . . . . . . . . . . . . . . . . . . . . Cargo Convoy Interrupts . | . . . . . . . . . . . . . . . . . . . . . . . . . . . . Stealth | -11 -10 -10 -9 -9 -9 -8 -8 -7 -7 -7 -7 -7 -7 -6 -6 -6 -6 -6 -5 -5 -5 -5 -5 -5 -5 -4 -4 --------- Run | Yrd Mat Min Mat Min Exi Min Mat Fac Was Fac Low Low Zio Pro Fac Low Low Dat Pro Fac Was Fac Upp Upp War Pro Fac Distress Signals 11 | . 3 . 1 . . . 2 . . . . . . . 1 . . . . 1 . . . . 1 1 1 Communications Jammed . | . . . . . . . . . . . . . . . . . . . . . . . . . . . . Distress Signals . | . . . . . . . . . . . . . . . . . . . . . . . . . . . . Times Spotted 316 | . 38 . 37 7 . 2 27 7 11 9 . 6 . 3 22 1 12 4 4 6 4 15 . 1 37 14 49 Peak Tracking Total 14 | . 5 . 4 3 . 3 6 4 5 4 . 3 . 1 10 1 3 4 4 2 2 7 . 2 14 8 13 Tactical Retreats 45 | . 1 . . 1 . 1 2 . 1 4 . 1 . . 5 . 5 . . . . 3 . . 4 6 11 Traps | -11 -10 -10 -9 -9 -9 -8 -8 -7 -7 -7 -7 -7 -7 -6 -6 -6 -6 -6 -5 -5 -5 -5 -5 -5 -5 -4 -4 ------- Run | Yrd Mat Min Mat Min Exi Min Mat Fac Was Fac Low Low Zio Pro Fac Low Low Dat Pro Fac Was Fac Upp Upp War Pro Fac Traps Triggered 15 | . 2 . 2 . . . . 1 . 3 . . . . . . . . . 4 . 1 . . . . 2 Indirectly . | . . . . . . . . . . . . . . . . . . . . . . . . . . . . Trap Hack Attempts . | . . . . . . . . . . . . . . . . . . . . . . . . . . . . Triggered . | . . . . . . . . . . . . . . . . . . . . . . . . . . . . Disarmed . | . . . . . . . . . . . . . . . . . . . . . . . . . . . . Reprogrammed 4 | . . . 4 . . . . . . . . . . . . . . . . . . . . . . . . Reused . | . . . . . . . . . . . . . . . . . . . . . . . . . . . . Traps Extracted . | . . . . . . . . . . . . . . . . . . . . . . . . . . . . Installed . | . . . . . . . . . . . . . . . . . . . . . . . . . . . . Triggered . | . . . . . . . . . . . . . . . . . . . . . . . . . . . . Machines | -11 -10 -10 -9 -9 -9 -8 -8 -7 -7 -7 -7 -7 -7 -6 -6 -6 -6 -6 -5 -5 -5 -5 -5 -5 -5 -4 -4 ---------- Run | Yrd Mat Min Mat Min Exi Min Mat Fac Was Fac Low Low Zio Pro Fac Low Low Dat Pro Fac Was Fac Upp Upp War Pro Fac Machines Disabled 30 | . 1 . 1 . . . 6 . . 1 . 1 . . . . . 1 . 2 . . . . 1 . 16 Max in Single Turn 6 | . 1 . 1 . . . 1 . . 1 . 1 . . . . . 1 . 1 . . . . 1 . 6 Garrison Access 6 | . . . . . . . . . . . . . . . 3 . . . . 2 . . . . . . 1 Machines Repaired . | . . . . . . . . . . . . . . . . . . . . . . . . . . . . Machines Dismantled . | . . . . . . . . . . . . . . . . . . . . . . . . . . . . Machines Sabotaged . | . . . . . . . . . . . . . . . . . . . . . . . . . . . . Overloaded Fab Kills . | . . . . . . . . . . . . . . . . . . . . . . . . . . . . Hacking | -11 -10 -10 -9 -9 -9 -8 -8 -7 -7 -7 -7 -7 -7 -6 -6 -6 -6 -6 -5 -5 -5 -5 -5 -5 -5 -4 -4 --------- Run | Yrd Mat Min Mat Min Exi Min Mat Fac Was Fac Low Low Zio Pro Fac Low Low Dat Pro Fac Was Fac Upp Upp War Pro Fac Machines Accessed 121 | . 8 . 14 1 . . 6 12 . 11 2 . 1 . 18 1 3 4 . 19 . 4 . . 4 . 13 Terminals 56 | . 5 . 10 1 . . 4 6 . 7 . . . . 8 . . . . 8 . 2 . . . . 5 Fabricators 12 | . . . . . . . . 3 . . . . . . 3 . . . . 3 . . . . . . 3 Repair Stations 11 | . 1 . 1 . . . 1 1 . 2 . . . . 1 . . . . 1 . 1 . . . . 2 Recycling Units 16 | . 2 . 2 . . . . 2 . 1 . . . . 2 . . . . 5 . 1 . . . . 1 Scanalyzers 4 | . . . 1 . . . 1 . . . . . . . 1 . . . . . . . . . . . 1 Garrison Access 7 | . . . . . . . . . . 1 . . . . 3 . . . . 2 . . . . . . 1 Total Hacks 337 | . 21 . 37 6 . . 20 38 . 27 8 . 3 . 47 1 5 25 . 39 . 8 . . 5 . 47 Successful 229 | . 8 . 17 3 . . 11 19 . 10 8 . 3 . 35 1 5 25 . 31 . 5 . . 5 . 43 Failed 107 | . 13 . 20 3 . . 9 19 . 17 . . . . 12 . . . . 8 . 3 . . . . 3 Catastrophic 12 | . 3 . 3 1 . . 1 1 . 1 . . . . . . . . . 2 . . . . . . . Database Lockouts 1 | . . . . . . . . . . . . . . . . . . . . . . . . . . . 1 Manual 119 | . 10 . 23 5 . . 8 12 . 8 . . 1 . 16 . . . . 17 . 1 . . 2 . 16 Terminals 176 | . 15 . 30 6 . . 16 25 . 18 . . . . 21 . . . . 18 . 5 . . . . 22 Fabricators 40 | . . . . . . . . 7 . . . . . . 13 . . . . 9 . . . . . . 11 Repair Stations 29 | . 2 . 3 . . . 2 2 . 6 . . . . 2 . . . . 2 . 2 . . . . 8 Recycling Units 24 | . 4 . 2 . . . . 4 . 2 . . . . 3 . . . . 7 . 1 . . . . 1 Scanalyzers 10 | . . . 2 . . . 2 . . . . . . . 2 . . . . . . . . . . . 4 Garrison Access 11 | . . . . . . . . . . 1 . . . . 6 . . . . 3 . . . . . . 1 Terminal Hacks 108 | . 3 . 5 1 . . 4 8 . 5 8 . 3 . 9 1 5 25 . 11 . 1 . . 5 . 14 Record 26 | . . . . . . . . . . . 7 . . . . 1 3 11 . . . . . . 4 . . Part Schematic 21 | . . . 1 . . . . 2 . 1 . . 3 . 1 . . 8 . 3 . . . . . . 2 Robot Schematic 3 | . . . . . . . . . . . . . . . . . . 3 . . . . . . . . . Robot Analysis 2 | . . . . . . . . . . . . . . . . . . . . 1 . . . . . . 1 Prototype ID Bank 8 | . 1 . 1 . . . 2 . . . . . . . . . . 3 . . . . . . . . 1 Open Door 4 | . . . . . . . . . . . 1 . . . . . 2 . . . . . . . 1 . . Branch Access Points 5 | . . . . . . . . 1 . . . . . . 1 . . . . 1 . 1 . . . . 1 Terminal Index 4 | . 1 . . . . . . 1 . . . . . . 1 . . . . . . . . . . . 1 Fabricator Index 2 | . . . . . . . . . . . . . . . 1 . . . . 1 . . . . . . . Repair Station Index 1 | . . . . . . . . . . 1 . . . . . . . . . . . . . . . . . Scanalyzer Index 1 | . . . . . . . . . . . . . . . . . . . . . . . . . . . 1 Alert Level 3 | . . . . . . . . . . . . . . . 1 . . . . . . . . . . . 2 Unreport Threat 2 | . . . . . . . . . . . . . . . . . . . . . . . . . . . 2 Locate Traps 3 | . . . 1 . . . 1 . . . . . . . . . . . . 1 . . . . . . . Reprogram Traps 1 | . . . 1 . . . . . . . . . . . . . . . . . . . . . . . . Recall Extermination 3 | . . . . . . . . . . . . . . . 2 . . . . 1 . . . . . . . Registered Components 4 | . . . . . . . . 1 . . . . . . 1 . . . . 1 . . . . . . 1 Zone Layout 15 | . 1 . 1 1 . . 1 3 . 3 . . . . 1 . . . . 2 . . . . . . 2 Fabricator Hacks 23 | . . . . . . . . 2 . . . . . . 9 . . . . 5 . . . . . . 7 Network Status 2 | . . . . . . . . 1 . . . . . . . . . . . . . . . . . . 1 Load Schematic 13 | . . . . . . . . . . . . . . . 5 . . . . 4 . . . . . . 4 Build 8 | . . . . . . . . 1 . . . . . . 4 . . . . 1 . . . . . . 2 Repair Station Hacks 23 | . 1 . 2 . . . 2 1 . 3 . . . . 2 . . . . 2 . 2 . . . . 8 Scan Component 13 | . 1 . 1 . . . 1 1 . 2 . . . . 1 . . . . 1 . 1 . . . . 4 Repair 10 | . . . 1 . . . 1 . . 1 . . . . 1 . . . . 1 . 1 . . . . 4 Recycling Unit Hacks 15 | . 1 . 2 . . . . 2 . 1 . . . . 2 . . . . 5 . 1 . . . . 1 Process 1 | . . . . . . . . 1 . . . . . . . . . . . . . . . . . . . Retrieve Matter 1 | . . . . . . . . 1 . . . . . . . . . . . . . . . . . . . Retrieve Components 13 | . 1 . 2 . . . . . . 1 . . . . 2 . . . . 5 . 1 . . . . 1 Scanalyzer 9 | . . . 2 . . . 2 . . . . . . . 1 . . . . . . . . . . . 4 Insert Component 7 | . . . 1 . . . 1 . . . . . . . 1 . . . . . . . . . . . 4 Analyze 2 | . . . 1 . . . 1 . . . . . . . . . . . . . . . . . . . . Garrison Access Hacks 6 | . . . . . . . . . . . . . . . 3 . . . . 2 . . . . . . 1 Seal Access 6 | . . . . . . . . . . . . . . . 3 . . . . 2 . . . . . . 1 Unauthorized Hacks 44 | . 3 . 6 1 . . 3 6 . 1 . . . . 9 . . . . 6 . 1 . . . . 8 Terminals 33 | . 3 . 6 1 . . 3 5 . 1 . . . . 6 . . . . 3 . 1 . . . . 4 Track 3 | . . . . . . . . . . . . . . . 1 . . . . . . . . . . . 2 Assimilate 5 | . . . . . . . . 1 . . . . . . 2 . . . . 1 . 1 . . . . . Botnet 21 | . 2 . 4 1 . . 3 3 . 1 . . . . 3 . . . . 2 . . . . . . 2 Disrupt 1 | . . . 1 . . . . . . . . . . . . . . . . . . . . . . . . Operators 3 | . 1 . 1 . . . . 1 . . . . . . . . . . . . . . . . . . . Fabricators 11 | . . . . . . . . 1 . . . . . . 3 . . . . 3 . . . . . . 4 Prioritize 5 | . . . . . . . . . . . . . . . 2 . . . . 1 . . . . . . 2 Recompile 6 | . . . . . . . . 1 . . . . . . 1 . . . . 2 . . . . . . 2 Repair Stations . | . . . . . . . . . . . . . . . . . . . . . . . . . . . . Recycling Units . | . . . . . . . . . . . . . . . . . . . . . . . . . . . . Scanalyzers . | . . . . . . . . . . . . . . . . . . . . . . . . . . . . Garrison Access . | . . . . . . . . . . . . . . . . . . . . . . . . . . . . Data Cores Recovered 3 | . . . 2 . . . 1 . . . . . . . . . . . . . . . . . . . . Used . | . . . . . . . . . . . . . . . . . . . . . . . . . . . . Hacking Detections 84 | . 7 . 10 1 . . 5 12 . 10 . . . . 14 . . . . 14 . 3 . . . . 8 Full Trace Events 4 | . . . . . . . . . . . . . . . 3 . . . . . . 1 . . . . . Feedback Events . | . . . . . . . . . . . . . . . . . . . . . . . . . . . . Feedback Blocked . | . . . . . . . . . . . . . . . . . . . . . . . . . . . . Robot Schematics Acquired 3 | . . . . . . . . . . . . . . . . . . 3 . . . . . . . . . Robots Built . | . . . . . . . . . . . . . . . . . . . . . . . . . . . . Authchips . | . . . . . . . . . . . . . . . . . . . . . . . . . . . . Time . | . . . . . . . . . . . . . . . . . . . . . . . . . . . . Total Robot Build Rating . | . . . . . . . . . . . . . . . . . . . . . . . . . . . . Part Schematics Acquired 22 | . . . 2 . . . 1 2 . 1 . . 3 . 1 . . 8 . 3 . . . . . . 1 Parts Built 10 | . . . . . . . . 2 . . . . . . 5 . . . . 1 . . . . . . 2 Authchips 5 | . . . . . . . . . . . . . . . 2 . . . . 1 . . . . . . 2 Time 452 | . . . . . . . . 106 . . . . . . 136 . . . . 53 . . . . . . 157 Total Part Build Rating 65 | . . . . . . . . 12 . . . . . . 32 . . . . 6 . . . . . . 15 Parts Repaired 10 | . . . 1 . . . 1 . . 1 . . . . 1 . . . . 1 . 1 . . . . 4 Time 437 | . . . 26 . . . 38 . . 43 . . . . 112 . . . . 50 . 37 . . . . 131 Parts Recycled . | . . . . . . . . . . . . . . . . . . . . . . . . . . . . Recycled Matter 77 | . . . . . . . . 77 . . . . . . . . . . . . . . . . . . . Retrieved Matter 77 | . . . . . . . . 77 . . . . . . . . . . . . . . . . . . . Retrieved Components 42 | . 9 . 18 . . . . . . 1 . . . . 5 . . . . 8 . . . . . . 1 Parts Scanalyzed 3 | . . . 1 . . . 1 . . . . . . . 1 . . . . . . . . . . . . Part Schematics Acquired 2 | . . . 1 . . . 1 . . . . . . . . . . . . . . . . . . . . Parts Damaged 1 | . . . . . . . . . . . . . . . 1 . . . . . . . . . . . . Bothacking | -11 -10 -10 -9 -9 -9 -8 -8 -7 -7 -7 -7 -7 -7 -6 -6 -6 -6 -6 -5 -5 -5 -5 -5 -5 -5 -4 -4 ------------ Run | Yrd Mat Min Mat Min Exi Min Mat Fac Was Fac Low Low Zio Pro Fac Low Low Dat Pro Fac Was Fac Upp Upp War Pro Fac Used RIF Installer . | . . . . . . . . . . . . . . . . . . . . . . . . . . . . Robots Hacked . | . . . . . . . . . . . . . . . . . . . . . . . . . . . . Non-combat . | . . . . . . . . . . . . . . . . . . . . . . . . . . . . Combat . | . . . . . . . . . . . . . . . . . . . . . . . . . . . . Robot Hacks Applied . | . . . . . . . . . . . . . . . . . . . . . . . . . . . . Relay Couplers Released . | . . . . . . . . . . . . . . . . . . . . . . . . . . . . Fabnet Peak Effective % . | . . . . . . . . . . . . . . . . . . . . . . . . . . . . Robots Rewired 6 | . . . . . . . . . . . . . . . . . . . . . . . . . 5 . 1 Allies Hacked . | . . . . . . . . . . . . . . . . . . . . . . . . . . . . Hacks Repelled . | . . . . . . . . . . . . . . . . . . . . . . . . . . . . Allies | -11 -10 -10 -9 -9 -9 -8 -8 -7 -7 -7 -7 -7 -7 -6 -6 -6 -6 -6 -5 -5 -5 -5 -5 -5 -5 -4 -4 -------- Run | Yrd Mat Min Mat Min Exi Min Mat Fac Was Fac Low Low Zio Pro Fac Low Low Dat Pro Fac Was Fac Upp Upp War Pro Fac Total Allies 52 | . . 2 . 1 . . . 1 15 . 2 . 2 . 1 . 3 . . 1 18 . . . 5 . 1 Largest Group 18 | . . 2 2 1 . . . 1 14 . 2 . 2 2 1 . 3 . . 1 18 . . . 5 1 . Highest-Rated Group 656 | . . 41 41 31 . . . 26 384 . 45 . 70 70 26 . 93 . . 26 656 . . . 243 64 . Highest-Rated Ally 64 | . . 31 31 31 . . . 26 35 . 25 . 39 39 26 . 31 . . 26 50 . . . 64 64 . Total Orders 4 | . . . . . . . . . . . . . . . 1 . . . . 1 . . . . 2 . . STAY 3 | . . . . . . . . . . . . . . . 1 . . . . 1 . . . . 1 . . FOLLOW 1 | . . . . . . . . . . . . . . . . . . . . . . . . . 1 . . Ally Attacks 318 | . . 4 36 . . . . . 92 . . . . 23 . . 18 . . . 94 . . . 51 . . Total Damage 8098 | . . 84 443 . . . . . 2622 . . . . 347 . . 269 . . . 2693 . . . 1640 . . Kills 36 | . . 2 10 . . . . . 6 . . . . . . . . . . . 6 . . . 12 . . Allies Corrupted . | . . . . . . . . . . . . . . . . . . . . . . . . . . . . Allies Melted . | . . . . . . . . . . . . . . . . . . . . . . . . . . . . Intel | -11 -10 -10 -9 -9 -9 -8 -8 -7 -7 -7 -7 -7 -7 -6 -6 -6 -6 -6 -5 -5 -5 -5 -5 -5 -5 -4 -4 ------- Run | Yrd Mat Min Mat Min Exi Min Mat Fac Was Fac Low Low Zio Pro Fac Low Low Dat Pro Fac Was Fac Upp Upp War Pro Fac Active Infowar (turns) 22405 | 97 2263 1141 1603 1021 312 1021 875 789 632 716 707 718 1050 426 1383 545 839 36 335 1451 400 730 199 328 1080 283 1425 Optics 10487 | . . . 1360 1021 312 1021 875 789 632 716 707 718 1050 426 860 . . . . . . . . . . . . Sensors 13853 | . . . . . . . . 757 590 645 707 718 1005 426 1354 545 839 36 335 1451 400 730 199 328 1080 283 1425 Seismic 6154 | 97 2263 1141 876 . . 881 873 23 . . . . . . . . . . . . . . . . . . . Robot Analysis Total 2 | . . . . . . . . . . . . . . . . . . . . 1 . . . . . . 1 Derelict Logs Recovered 15 | . . 1 . 1 . . . . . . 2 1 1 . . 3 2 . 1 . . . 1 2 . . . Drone Launches . | . . . . . . . . . . . . . . . . . . . . . . . . . . . . Drone Recoveries . | . . . . . . . . . . . . . . . . . . . . . . . . . . . . Exploration | -11 -10 -10 -9 -9 -9 -8 -8 -7 -7 -7 -7 -7 -7 -6 -6 -6 -6 -6 -5 -5 -5 -5 -5 -5 -5 -4 -4 ------------- Run | Yrd Mat Min Mat Min Exi Min Mat Fac Was Fac Low Low Zio Pro Fac Low Low Dat Pro Fac Was Fac Upp Upp War Pro Fac Turns Passed 22934 | 210 2263 1141 1603 1021 312 1021 875 789 632 716 707 718 1050 426 1383 587 897 99 340 1479 401 742 199 328 1115 283 1597 Spaces Moved 23361 | 151 1320 886 1071 661 267 845 597 1235 505 1280 1208 1100 738 330 1581 918 1140 108 438 1947 403 802 362 405 1164 380 1519 Core 3 | 1 . . . . . . . . . . . . . . . . . . . . . . . . 2 . . Treads . | . . . . . . . . . . . . . . . . . . . . . . . . . . . . Legs 63 | . . . . . . . . . . . . . . . . . . . . . . . . . . . 63 Wheels 5797 | 150 1320 886 1071 661 267 845 597 . . . . . . . . . . . . . . . . . . . . Hover 17498 | . . . . . . . . 1235 505 1280 1208 1100 738 330 1581 918 1140 108 438 1947 403 802 362 405 1162 380 1456 Flight . | . . . . . . . . . . . . . . . . . . . . . . . . . . . . Fastest Speed 42 | 50 80 105 110 115 115 115 95 42 51 46 50 50 121 121 48 58 58 58 58 50 50 54 54 54 50 52 47 Average Speed 73 | 99 113 113 115 115 115 115 101 48 86 46 50 60 121 121 62 58 58 58 58 50 57 56 54 54 55 52 60 Slowest Speed 1150 | 100 145 120 155 115 115 115 110 51 126 55 50 131 121 121 131 58 58 58 58 114 118 114 54 54 1150 52 170 Overloaded Moves . | . . . . . . . . . . . . . . . . . . . . . . . . . . . . Propulsion Burnouts . | . . . . . . . . . . . . . . . . . . . . . . . . . . . . Robots Hopped . | . . . . . . . . . . . . . . . . . . . . . . . . . . . . Potential Cave-ins 3 | . . . . . . . . . 2 . . . . . . . . . . . . . . . . . 1 Cave-ins Triggered . | . . . . . . . . . . . . . . . . . . . . . . . . . . . . Exploration Rate (%) 68 | 5 99 100 92 99 67 103 37 31 95 44 96 98 84 57 38 95 95 76 66 33 97 17 56 51 91 64 37 Regions Visited 27 Branch Regions 16 Pre-discovered Areas 5 | . . . . . . . . . . . 2 . 2 . . . . 1 . . . . . . . . . Known Exits Taken 12 | . . . . . . . . . . 1 1 1 1 1 1 . . . 1 . . 1 1 1 1 1 . Unknown Exits Taken 11 | 1 1 1 1 1 1 1 1 . . . . . . . . 1 1 1 . . . . . . . . . Scrap Searched 32 | . . 3 . 1 . 1 . . . . 8 2 3 1 . 3 3 . 3 . . . 1 3 . . . Spaces Dug 301 | . . . . . . . 3 11 2 20 3 2 . 2 19 . 7 4 8 51 1 26 . 7 1 5 129 Terrain Destroyed 1007 | . . . 16 40 . 20 82 41 5 20 3 65 . 21 23 19 19 6 64 115 2 34 . 82 62 73 195 Melee 86 | . . . . . . . . 11 2 20 3 2 . 2 17 . 2 . . 12 1 10 . 1 1 . 2 Projectile 236 | . . . 2 . . . 10 2 3 . . 1 . 2 6 . 14 6 18 67 1 24 . 12 . 9 59 AOE 685 | . . . 14 40 . 20 72 28 . . . 62 . 17 . 19 3 . 46 36 . . . 69 61 64 134 Terrain Rammed . | . . . . . . . . . . . . . . . . . . . . . . . . . . . . Walls Destroyed . | . . . . . . . . . . . . . . . . . . . . . . . . . . . . Machines Disabled . | . . . . . . . . . . . . . . . . . . . . . . . . . . . . Actions | -11 -10 -10 -9 -9 -9 -8 -8 -7 -7 -7 -7 -7 -7 -6 -6 -6 -6 -6 -5 -5 -5 -5 -5 -5 -5 -4 -4 --------- Run | Yrd Mat Min Mat Min Exi Min Mat Fac Was Fac Low Low Zio Pro Fac Low Low Dat Pro Fac Was Fac Upp Upp War Pro Fac Total 27956 | 185 1850 1023 1287 909 272 883 780 1395 681 1359 1292 1125 895 342 1918 951 1322 129 499 2334 554 1034 365 490 1576 448 2058 Wait 3090 | 12 364 126 37 231 . 26 72 84 148 35 74 3 153 3 246 16 131 4 30 218 124 183 4 61 299 54 352 Move 23336 | 150 1319 885 1070 660 266 844 596 1235 504 1279 1207 1099 737 329 1580 917 1139 107 437 1947 402 801 361 404 1163 379 1519 Hop . | . . . . . . . . . . . . . . . . . . . . . . . . . . . . Pick Up 159 | 5 15 6 26 2 . . 16 11 4 4 1 . . . 13 1 . . 4 19 3 1 . . 16 . 12 Fast Attach 60 | 7 1 . 2 . 3 1 4 . . 3 . 2 1 . 9 . 2 . . 8 . 1 . . 4 . 12 Attach 65 | . 4 . 5 . . . 6 3 2 . . . . . 8 1 2 2 1 11 1 2 . 1 3 . 13 Detach 35 | . 1 . . . . . 1 . . . . . . . 6 . 1 1 1 9 1 2 . . 3 . 9 Swap 186 | . 9 3 23 4 . 3 13 17 6 3 . 6 2 2 8 5 11 3 3 14 10 4 . 6 13 1 17 Drop 162 | . 8 3 38 2 3 2 13 17 2 3 1 . 2 . 13 . 1 . 1 15 4 1 . . 19 . 14 Fire 662 | 11 129 . 86 10 . 7 59 9 12 1 . 11 . 4 8 1 25 10 22 73 1 24 . 17 46 14 82 Melee 178 | . . . . . . . . 19 3 24 9 4 . 4 27 10 10 2 . 20 8 15 . 1 1 . 21 Ram 3 | . . . . . . . . . . . . . . . . . . . . . . . . . . . 3 Kick 3 | . . . . . . . . . . . . . . . . . . . . . . . . . . . 3 Crush . | . . . . . . . . . . . . . . . . . . . . . . . . . . . . Escape Stasis 7 | . . . . . . . . . . 7 . . . . . . . . . . . . . . . . . Rewire 10 | . . . . . . . . . . . . . . . . . . . . . . . . . 9 . 1 Trap . | . . . . . . . . . . . . . . . . . . . . . . . . . . . . Miscellaneous . | . . . . . . . . . . . . . . . . . . . . . . . . . . . . Route ------- -11/Scrapyard -10/Materials (discovered 5 exits: *Mat x3 / [*Min] / [*Sub]) -10/Mines (discovered 3 exits: *Mat x2 / [*Sub]) -9/Materials (discovered 6 exits: *Mat x3 / *Min / [*Sto x2]) -9/Mines (discovered 4 exits: *Mat x2 / [*Exi] / *Zio) -9/Exiles (discovered 2 exits: [*Min x2]) -8/Mines (discovered 2 exits: *Mat x2) -8/Materials -7/Factory (discovered 3 exits: *Fac / *Low x2) -7/Waste -7/Factory (discovered 4 exits: *Fac x3 / *Low) -7/Lower Caves -7/Lower Caves (discovered 2 exits: *Fac / *Zio) -7/Zion -6/Proximity Caves -6/Factory (discovered 5 exits: *Fac x3 / *Low x2) -6/Lower Caves -6/Lower Caves (discovered 2 exits: *Fac / *Dat) -6/Data Miner -5/Proximity Caves -5/Factory (discovered 6 exits: *Fac x2 / Upp x2 / Ext x2) -5/Waste -5/Factory (discovered 4 exits: *Upp x2 / Ext x2) -5/Upper Caves -5/Upper Caves (discovered 2 exits: *Fac / *War) -5/Warlord -4/Proximity Caves -4/Factory (discovered 4 exits: *Res x2 / *Upp x2) History --------- Turn | Location | Event 20 | -11/Scrapyard | Discovered new exit (range 16) 211 | -11/Scrapyard | Entered Materials 307 | -10/Materials | Build established: Mutant 930 | -10/Materials | Discovered new exit (range 11) 1015 | -10/Materials | Discovered new exit (range 12) 1123 | -10/Materials | Discovered new exit (range 6) 1172 | -10/Materials | Core integrity fell below 50% 1202 | -10/Materials | Build established: Scavenger-Mutant 1365 | -10/Materials | Discovered new exit (range 8) 1527 | -10/Materials | Discovered new exit (range 16) 2032 | -10/Materials | Build established: Mutant 2474 | -10/Materials | Entered Mines 2570 | -10/Mines | Learned Materials emergency access door positions 2748 | -10/Mines | Build established: Scavenger-Mutant 2870 | -10/Mines | Discovered new exit (range 9) 2878 | -10/Mines | Joined a pair of Derelicts in attacking an 0b10 outpost 3075 | -10/Mines | Discovered new exit (range 9) 3289 | -10/Mines | Discovered new exit (range 10) 3615 | -10/Mines | Entered Materials 3615 | -9/Materials | Accompanied by 2 allies 3615 | -9/Materials | Evolved 2 slots: Utility x2 3620 | -9/Materials | Led the pair of lost Derelicts to an unsafe place 3932 | -9/Materials | Discovered new exit (range 5) 4212 | -9/Materials | Repaired Grenade Launcher? 4303 | -9/Materials | Discovered new exit (range 10) 4568 | -9/Materials | Discovered new exit (range 9) 4649 | -9/Materials | Discovered new exit (range 20) 4744 | -9/Materials | Discovered new exit (range 20) 5028 | -9/Materials | Discovered new exit (range 9) 5218 | -9/Materials | Entered Mines 5219 | -9/Mines | Assembled infested the area 5221 | -9/Mines | Received a Mining Laser from a helpful Derelict 5291 | -9/Mines | Build established: Mutant 5523 | -9/Mines | Found a hidden stash of uninstalled traps 5688 | -9/Mines | Learned Materials stockpile data 5756 | -9/Mines | Discovered new exit (range 8) 5791 | -9/Mines | Discovered new exit (range 5) 5851 | -9/Mines | A Derelict revealed a hidden shortcut to a safe place 5900 | -9/Mines | Discovered new exit (range 19) 6148 | -9/Mines | Received a Rocket Launcher from a helpful Derelict 6239 | -9/Mines | Entered Exiles 6254 | -9/Exiles | Discovered new exit (range 18) 6267 | -9/Exiles | Met 8R-AWN 6285 | -9/Exiles | Met EX-HEX 6328 | -9/Exiles | Met EX-DEC 6346 | -9/Exiles | Met EX-BIN 6433 | -9/Exiles | Visited The Gauntlet 6538 | -9/Exiles | Discovered new exit (range 14) 6551 | -9/Exiles | Entered Mines 6795 | -8/Mines | Discovered new exit (range 6) 7104 | -8/Mines | Discovered new exit (range 7) 7572 | -8/Mines | Entered Materials 7572 | -8/Materials | Evolved 2 slots: Propulsion x2 7876 | -8/Materials | Build established: Scavenger-Mutant 7970 | -8/Materials | Destroyed 8 combat bots 8206 | -8/Materials | Repaired Hrd. Medium Armor Plating 8353 | -8/Materials | Discovered new exit (range 17) 8447 | -8/Materials | Entered Factory 8447 | -7/Factory | Evolved 2 slots: Propulsion x1, Utility x1 8653 | -7/Factory | Fabricated Cmb. Gravmag System (x2) 8734 | -7/Factory | Build established: Scout 8773 | -7/Factory | Identified exit to Lower Caves 8943 | -7/Factory | Discovered new exit (range 5) 8945 | -7/Factory | Identified exit to Factory 9236 | -7/Factory | Sucked down chute 9236 | -7/Factory | Entered Waste 9252 | -7/Waste | Spotted C-40 Crusher 9280 | -7/Waste | Spotted C-40 Crusher 9281 | -7/Waste | Spotted C-40 Crusher 9300 | -7/Waste | Spotted C-40 Crusher 9338 | -7/Waste | Spotted C-40 Crusher 9388 | -7/Waste | Crushed by Compactor (1 part destroyed, 2 dropped) 9391 | -7/Waste | Crushed by Compactor (1 part destroyed, 1 dropped) 9445 | -7/Waste | Warlord forces began an assault 9483 | -7/Waste | Lost 6 allies 9525 | -7/Waste | Allies destroyed C-40 Crusher 9527 | -7/Waste | Allies destroyed C-40 Crusher 9532 | -7/Waste | Allies destroyed C-40 Crusher 9537 | -7/Waste | Allies destroyed C-40 Crusher 9543 | -7/Waste | Allies destroyed C-40 Crusher 9738 | -7/Waste | Spotted C-40 Crusher 9765 | -7/Waste | Allies destroyed C-40 Crusher 9821 | -7/Waste | Discovered new exit (range 10) 9829 | -7/Waste | Found Prototype Launcher 9852 | -7/Waste | Identified Mni. Smartbomb Launcher 9868 | -7/Waste | Identified exit to Factory 9868 | -7/Waste | Entered Factory 9917 | -7/Factory | Discovered exit to Factory (range 8) 10224 | -7/Factory | Discovered exit to Factory (range 14) 10234 | -7/Factory | Build established: Scavenger-Scout 10322 | -7/Factory | Repaired Broken Force Lance? 10437 | -7/Factory | Discovered exit to Lower Caves (range 13) 10511 | -7/Factory | Discovered exit to Factory (range 17) 10584 | -7/Factory | Entered Lower Caves 11014 | -7/Lower Caves | Entered an active Warlord outpost 11019 | -7/Lower Caves | Learned Factory emergency access door positions 11020 | -7/Lower Caves | Learned location of Extension (-5) 11020 | -7/Lower Caves | Learned Factory trap positions 11020 | -7/Lower Caves | Learned Research trap positions 11024 | -7/Lower Caves | A Commander dispatched an escort 11041 | -7/Lower Caves | Learned location of Zion (-7) 11250 | -7/Lower Caves | Discovered new exit (range 18) 11280 | -7/Lower Caves | Identified exit to Lower Caves 11291 | -7/Lower Caves | Entered another Lower Caves area 11291 | -7/Lower Caves | Accompanied by 2 allies 11292 | -7/Lower Caves | Commander's escort returned to base 11292 | -7/Lower Caves | Commander's escort returned to base 11354 | -7/Lower Caves | Learned Factory security intel 11541 | -7/Lower Caves | Attracted the attention of an 0b10 checkpoint 11685 | -7/Lower Caves | Encountered a Warlord checkpoint 11964 | -7/Lower Caves | Discovered new exit (range 13) 12008 | -7/Lower Caves | Identified exit to Zion 12009 | -7/Lower Caves | Entered Zion 12064 | -7/Zion | Discovered new exit (range 19) 12118 | -7/Zion | Found Prototype Device 12118 | -7/Zion | Identified Mobile Refinery Mk. CCLXVII 12475 | -7/Zion | Build established: Scavenger-Assassin 12527 | -7/Zion | Learned Factory emergency access door positions 12587 | -7/Zion | Gained Derelict followers 12633 | -7/Zion | Received a visual enhancement algorithm 12633 | -7/Zion | Ran a visual enhancement algorithm 12691 | -7/Zion | Given A8's code to call for help 13053 | -7/Zion | Identified exit to Proximity Caves 13059 | -7/Zion | Entered Proximity Caves 13059 | -6/Proximity Caves | Accompanied by 2 allies 13420 | -6/Proximity Caves | Spotted B-75 Beast 13485 | -6/Proximity Caves | Entered Factory 13485 | -6/Factory | Evolved 2 slots: Utility x2 13486 | -6/Factory | Identified exit to Factory 13487 | -6/Factory | Loaded intel: 91 trap records 14033 | -6/Factory | Build established: Hacker-Scout 14175 | -6/Factory | Discovered exit to Factory (range 10) 14300 | -6/Factory | Fabricated Lrn. Sensor Array (x2) 14329 | -6/Factory | Fabricated Adv. Hacking Suite (x1) 14623 | -6/Factory | Identified exit to Lower Caves 14645 | -6/Factory | Build established: Hacker-Mutant 14680 | -6/Factory | Fabricated Adv. Hacking Suite? 14697 | -6/Factory | Repaired Broken Mni. Smartbomb Launcher? 14701 | -6/Factory | Fabricated Adv. Hacking Suite (x1) 14868 | -6/Factory | Entered Lower Caves 15016 | -6/Lower Caves | Learned Factory terminal intel 15266 | -6/Lower Caves | Entered a destroyed Warlord outpost 15348 | -6/Lower Caves | Discovered new exit (range 11) 15369 | -6/Lower Caves | Learned Factory emergency access door positions 15399 | -6/Lower Caves | Found DRS Beacon 15455 | -6/Lower Caves | Entered another Lower Caves area 15930 | -6/Lower Caves | Entered an active Warlord outpost 15934 | -6/Lower Caves | Learned location of 1 exit from Factory 15934 | -6/Lower Caves | A Commander dispatched an escort 15935 | -6/Lower Caves | Learned Research terminal intel 15935 | -6/Lower Caves | Learned Armory terminal intel 16058 | -6/Lower Caves | Discovered exit to Factory (range 11) 16136 | -6/Lower Caves | Attracted the attention of an 0b10 checkpoint 16305 | -6/Lower Caves | Learned location of 1 exit from Factory 16306 | -6/Lower Caves | Discovered new exit (range 7) 16324 | -6/Lower Caves | Found Alien Artifact 16324 | -6/Lower Caves | Identified Core Expander 16324 | -6/Lower Caves | Installed Core Expander, added new Weapon slot 16352 | -6/Lower Caves | Entered Data Miner 16352 | -6/Data Miner | Discovered new exit (range 6) 16364 | -6/Data Miner | Met Data Miner 16375 | -6/Data Miner | Learned location of Section 7 (-2) 16375 | -6/Data Miner | Acquired the access code to Warlord's prototype stash 16384 | -6/Data Miner | Received God Mode back door access code from Data Miner 16418 | -6/Data Miner | Data Conduit disabled 16451 | -6/Data Miner | Entered Proximity Caves 16549 | -5/Proximity Caves | Learned Factory stockpile data 16763 | -5/Proximity Caves | Build established: Hacker-Gladiator 16780 | -5/Proximity Caves | Discovered exit to Factory (range 15) 16791 | -5/Proximity Caves | Entered Factory 16791 | -5/Factory | Evolved 2 slots: Propulsion x1, Utility x1 16792 | -5/Factory | Identified exit to Upper Caves 16793 | -5/Factory | Identified exit to Factory 16793 | -5/Factory | Identified exit to Extension 16796 | -5/Factory | Loaded intel: 28 terminal locations 17085 | -5/Factory | Build established: Hacker-Mutant 17211 | -5/Factory | Repaired Gravmag Array? 17468 | -5/Factory | Discovered exit to Factory (range 6) 17589 | -5/Factory | Fabricated Adv. Hacking Suite? 17911 | -5/Factory | Build established: Wizard-Mutant 18270 | -5/Factory | Sucked down chute 18270 | -5/Factory | Entered Waste 18278 | -5/Waste | Found Adv. Force Booster 18303 | -5/Waste | Spotted C-40 Crusher 18340 | -5/Waste | Spotted C-40 Crusher 18382 | -5/Waste | Spotted C-40 Crusher 18387 | -5/Waste | Spotted C-40 Crusher 18414 | -5/Waste | Warlord forces began an assault 18565 | -5/Waste | Allies destroyed C-40 Crusher 18582 | -5/Waste | Spotted C-40 Crusher 18583 | -5/Waste | Discovered new exit (range 16) 18598 | -5/Waste | Allies destroyed C-40 Crusher 18625 | -5/Waste | Lost 4 allies 18635 | -5/Waste | Identified exit to Factory 18671 | -5/Waste | Entered Factory 18674 | -5/Factory | Murdered 3 allies 19154 | -5/Factory | Repaired Cmb. Linear Gravjet? 19413 | -5/Factory | Entered Upper Caves 19479 | -5/Upper Caves | Learned 4 Factory zone layouts 19588 | -5/Upper Caves | Encountered a Warlord checkpoint 19595 | -5/Upper Caves | Discovered new exit (range 9) 19601 | -5/Upper Caves | Identified exit to Upper Caves 19612 | -5/Upper Caves | Entered another Upper Caves area 19625 | -5/Upper Caves | Discovered exit to Factory (range 16) 19913 | -5/Upper Caves | Learned 12 Factory zone layouts 19917 | -5/Upper Caves | Discovered new exit (range 9) 19921 | -5/Upper Caves | Identified exit to Warlord 19940 | -5/Upper Caves | Entered Warlord 19958 | -5/Warlord | System corruption cleaned by Quarantine Array 19982 | -5/Warlord | Received a Watcher feed algorithm from an ecstatic Tinkerer 19982 | -5/Warlord | Ran a Watcher feed algorithm 20064 | -5/Warlord | Learned Testing emergency access door positions 20064 | -5/Warlord | Learned Research stockpile data 20065 | -5/Warlord | Learned 4 Access zone layouts 20065 | -5/Warlord | Learned Armory terminal intel 20136 | -5/Warlord | Visited the Vortex Lab 20144 | -5/Warlord | Found Prototype Energy Cannon 20145 | -5/Warlord | Found Prototype Energy Cannon 20146 | -5/Warlord | Identified Vortex Cannon (x2) 20156 | -5/Warlord | Warlord's base attacked by MAIN.C 20190 | -5/Warlord | Opened Warlord's prototype stash 20209 | -5/Warlord | Found Prototype Reactor 20212 | -5/Warlord | Found Prototype Device 20214 | -5/Warlord | Identified Exp. Phase Shifter 20224 | -5/Warlord | Found Prototype Hackware 20229 | -5/Warlord | Found Prototype Processor 20233 | -5/Warlord | Met Warlord 20407 | -5/Warlord | Warlord forces counterattacked 20423 | -5/Warlord | Destroyed 11 combat bots 20496 | -5/Warlord | Build established: Hacker-Mutant 20596 | -5/Warlord | Spotted Striker 20624 | -5/Warlord | Lost 5 allies 20644 | -5/Warlord | Found Prototype Device 20644 | -5/Warlord | Identified Adv. Kinecellerator 20825 | -5/Warlord | Destroyed Striker 20831 | -5/Warlord | Warlord base infiltrated, sounded retreat 20831 | -5/Warlord | Spotted B-75 Beast 20831 | -5/Warlord | Found Prototype Processor 21018 | -5/Warlord | Discovered new exit (range 11) 21030 | -5/Warlord | Identified exit to Proximity Caves 21032 | -5/Warlord | Lost 16 allies 21055 | -5/Warlord | Entered Proximity Caves 21055 | -4/Proximity Caves | Accompanied by 1 ally 21063 | -4/Proximity Caves | Spotter reported a threat 21109 | -4/Proximity Caves | Attracted the attention of an 0b10 outpost 21332 | -4/Proximity Caves | Discovered exit to Factory (range 10) 21338 | -4/Proximity Caves | Entered Factory 21338 | -4/Factory | Evolved 2 slots: Utility x2 21338 | -4/Factory | Identified System Mapper 21339 | -4/Factory | Identified exit to Research 21422 | -4/Factory | Repaired Cmb. Antigrav System 21450 | -4/Factory | Repaired Gravmag Array 21466 | -4/Factory | Fabricated Gamma Bomb Array (x1) 21479 | -4/Factory | Repaired Cmb. Gravmag System 21652 | -4/Factory | Build established: Wizard-Skirmisher 21914 | -4/Factory | Identified Exp. Core Analyzer 21914 | -4/Factory | Identified Exp. Armor Integrity Analyzer 21914 | -4/Factory | Identified Vortex Chain Reactor 21954 | -4/Factory | Identified exit to Upper Caves 22082 | -4/Factory | Central database locked down 22261 | -4/Factory | Build established: Wizard-Mutant 22329 | -4/Factory | Repaired Mni. Smartbomb Launcher 22742 | -4/Factory | Fabricated Exp. Signal Interpreter? 22818 | -4/Factory | Lost 8 parts (1p3n2u2w) 22859 | -4/Factory | Core integrity fell below 50% 22884 | -4/Factory | System corruption reached 10% 22910 | -4/Factory | Core integrity fell below 20% 22935 | -4/Factory | Destroyed by G-67 Veteran with Plasma Rifle Last Messages --------------- 22887_ Critical hit (Burn: +37). 22887_ Penetrated by Slug. 22887_ Lgt. Antimatter Reactor destroyed. 22888_ Acquired 85 matter. 22888_ Cmb. Antigrav System destroyed. 22890_ Attempting to rewire G-67 Veteran. 22890_ G-67 Veteran rewired. 22890_ Veteran 7a destroyed. 22891_ Cmb. Linear Gravjet destroyed. 22894_ Slug penetrates Wall. 22901_ System corrupted: Exp. Myomer Leg rejected. 22901_ Slug penetrates Wall. 22902_ Y-64 Sentinel destroyed. 22903_ Acquired Exp. Myomer Leg. 22908_ Exp. Energy Well destroyed. 22918_ System corrupted: Matter fused (-10). 22918_ Penetrated by Slug. 22934_ Kicked Y-64 Sentinel. 22934_ Penetrated by Slug. 22935_ Kicked Y-64 Sentinel. Map ----- +----------------------------------------------------+ | ??????????# # """ """ ## | | ??????????# ## """ ## | | ??????????# ## ## ! """ """ """ | | ??????????# ! ## ## """ """ """ | | ??????????# ! + %"" """ """ | | ??????????# #?#### | | ??????????# #????# """ | | ??????????# #???## ! """ | | ??????????########???# ]]] """ """ | | ?????????????????????# ]]] """ " F | | ?????????????????????# ]] """ """" | | ?????????????????????# | | ???????????????####### | | ??????????????? # ###+################## | | ??????????????? """ # ## =#???????# # | | ??????????????? """ # ## #???????# # | | ?????????????!? """ # b#" """ """ #??###### # | | ??????????????? # ## """ """ #??# # | | ??????????????? + ## """ """ #### # | | ??????????????? # % ## + + """ # | | ??????????????? # ## = #### """ # | | ???????????????####### ## ! #??# """ + | | ????????????????????# ###########??# # | | ????????????????????# ##################### | | ????????????????????# k | | ????????????????????# Y@ | | ????????????????????# | | ????????????????????# ###################### | | ????????????????????# l #??????????????# | | ????????????????????### ;##??????????????# """ | | ?????#????????????????# ;#??????????###### """ | | ????? "???????????????# ;#??####??### ! # """ | | ????? "???????????????# ##?? #??# + + | | ????? " ? ?????????#gg #??? #??# # """" | | ????? ?? #????#??? g ???? #### # #"T | | ##### ? #???? ??? ???? + + #""" | | # ? #???? ?? H ???? #### # # = | | # +???? ?? ???? #??# # ####### | | = # """" #???? ?? ???? #??# # #?????? | | # """" #???? ?? ???? #??# # #?????? | | # """" #???? ???? ???? #?## ############ | | # """" #???# #####+########### | | # #???# ## + | | [# """" #???# ##= """" ####"## | | " """" #???# ## """" #??#### ########### | | ###"# """" #???# ## """" #????## ##?# | | # """" #???# ## """" #????# #?#" | | # ##### ## """" #????# #?#" """ | | # = + + """" !##???# > #?#" """ | | ########## ## """" "#???# #?#T """ | +----------------------------------------------------+ Best States ------------- Heat Dissipation 43 Coolant Potential 100 Energy Generation 19 Energy Capacity 910 Matter Stores 300 Matter Capacity 300 Sight Range 20 Robot Scan Range 18 Terrain Scan Density 10 EM Shielding 3 Armor Coverage 300 Evasion (%) 56 Melee Accuracy 6 Force Boost 20 Offensive Hacking 76 Defensive Hacking 14 Authchip Count 3 Item Schematics ----------------- Hacking Suite | -9/Materials | Scanalyzed Huge Storage Unit | -9/Materials | Hacked Imp. Sensor Array | -8/Materials | Scanalyzed Cmb. Gravmag System | -7/Factory | Hacked Gravmag Array | -7/Factory | Hacked Adv. Hacking Suite | -7/Factory | Hacked Flamer | -7/Zion | Free Slug Cannon | -7/Zion | Free Tactical Coordination Suite | -7/Zion | Free Lrn. Sensor Array | -6/Factory | Hacked Combat Drone Bay | -6/Data Miner | Free Lgt. Regenerative Plating | -6/Data Miner | Free Cld. Gravmag System | -6/Data Miner | Free Plasma Sword | -6/Data Miner | Free Imp. Matter Compressor | -6/Data Miner | Free Imp. Linear Gravjet | -6/Data Miner | Free Adv. Cryofiber Web | -6/Data Miner | Free HERF Cannon | -6/Data Miner | Free Gamma Bomb Array | -5/Factory | Hacked Prc. Energy Filter | -5/Factory | Hacked Exp. Signal Interpreter | -5/Factory | Hacked Graphene Brace | -4/Factory | Hacked Robot Schematics ------------------ B-48 Gladiator | -6/Data Miner | Free R-10 Processor | -6/Data Miner | Free G-50 Soldier | -6/Data Miner | Free Fabricated ------------ Cmb. Gravmag System | x2 | -7/Factory | Preloaded Lrn. Sensor Array | x2 | -6/Factory | Authchip Adv. Hacking Suite | x1 | -6/Factory Adv. Hacking Suite | x1 | -6/Factory | Authchip Adv. Hacking Suite | x1 | -6/Factory Adv. Hacking Suite | x1 | -5/Factory | Authchip Gamma Bomb Array | x1 | -4/Factory | Authchip Exp. Signal Interpreter | x1 | -4/Factory | Authchip Repaired ---------- Grenade Launcher | 50% | -9/Materials Hrd. Medium Armor Plating | 39% | -8/Materials Force Lance | 3% | -7/Factory | Broken Mni. Smartbomb Launcher | 60% | -6/Factory | Broken Gravmag Array | 31% | -5/Factory Cmb. Linear Gravjet | 33% | -5/Factory Cmb. Antigrav System | 12% | -4/Factory Gravmag Array | 42% | -4/Factory Cmb. Gravmag System | 69% | -4/Factory Mni. Smartbomb Launcher | 1% | -4/Factory Alien Tech Used ----------------- Core Expander Achievements -------------- None Challenges ------------ None Game ------ Seed OvertunedCentriumEdition Manual? 0 Play Time 04:34:17 Cumulative 466.3 hours Start 2025.08.27 @ 19:40:27 End 2025.08.28 @ 01:35:29 Sessions 3 Manual Loads 0 Difficulty Rogue Special Mode None Game No. 221 Rogue 221 Adventurer 0 Explorer 0 Win Type - Total 5 Types 5/0/0/0/0/0/0/0/0/0 Lore% 65 Gallery% 71 Achievement% 64 Wizard Run 0 Options --------- Layout 0 ASCII 0 Keyboard 1 Movement Vi Keybinds 0 Fullscreen 2 Font 18/SmallcapsGlow Map View 76x50 Zoom Use 0% Tactical HUD 1 Map Filters NONE Filters NONE Steam 1 RUN: ce4825c3-026f-4b76-8d72-5d011cc6b7c3